{"text_format":"2","workbook":"xlsx","n_sheets":8,"sheets":["Общие сведения","Показатели","Аутсорсинг учетных функций","Технический аудит и консалтинг","МСФО","ESG","Бланк подтверждения","Бланк подтверждения (ТАиК)"],"not_rendered":{"charts":0,"images":1,"macros":0,"external_links":0,"defined_names":0,"comments":3,"pivot_tables":0},"unopened":[],"bounds":{"document_bytes":16777216,"sheet_cells":100000,"run_cost":"one","rows_first":2000,"rows_last":500,"rows_between":2000,"halvings":0,"cell_chars":16384,"cell_head_chars":4096},"cells_cut":0,"cells_raw":0,"read":"whole","date_system":"1900"}

{"sheet":"Общие сведения","index":0,"n_rows":59,"n_cols":4,"rows_kept":59,"cut":false,"hidden":false,"merged":[[58,0,58,3],[52,0,52,1],[53,0,53,1],[53,2,53,3],[52,2,52,3],[54,0,57,1],[0,0,0,3],[19,0,19,3],[3,2,18,3],[2,0,2,3],[41,0,41,1],[30,0,30,1],[33,0,33,1],[29,0,29,1],[22,0,22,1],[1,0,1,3],[15,0,18,0],[28,0,28,3],[40,0,40,1],[39,0,39,1],[20,0,21,1],[23,0,23,1],[51,0,51,3],[49,0,49,1],[38,0,38,1],[24,0,25,1],[26,0,26,1],[27,0,27,1],[32,0,32,1],[31,0,31,1],[35,0,35,1],[34,0,34,1],[37,0,37,1],[36,0,36,1],[42,0,42,1],[50,0,50,1],[47,0,48,1],[46,0,46,3]]}
["Анкета RAEX для участия в ежегодных рэнкингах \n\"Российский аудит\", \"Российский консалтинг\",\n\"Аутсорсинг учётных функций\", \"Технический аудит и консалтинг\"."]
["Пояснения к пунктам с примечанием (*) смотрите в инструкции к анкете (файл instruct.doc)."]
[]
["Наименование аудиторской организации (в кавычках с указанием организационно-правовой формы)."]
["ИНН организации."]
["ОРНЗ."]
["Фактический адрес организации."]
["Юридический адрес организации."]
["Адрес организации (для курьерской службы)."]
["Номер телефона (с указанием городского кода)."]
["Адрес электронной почты."]
["Адрес интернет-сайта."]
["Аудиторская сеть, членом которой является компания."]
["Состоит ли компания в реестре аудиторских организаций, оказывающих аудиторские услуги общественно значимым организациям, по состоянию на 26.01.2026 (да / нет)."]
["Состоит ли компания в реестре аудиторских организаций, оказывающих аудиторские услуги ОЗОФР, по состоянию на 26.01.2026 (да / нет)."]
["ФИО и должность руководителя аудиторской организации.","ФИО"]
[]
[null,"Должность"]
[]
[]
["2.* Численность всех сотрудников аудиторской компании (средняя за год, по форме № 2-аудит).",null,"За 2024 год \n(в среднем за год)","За 2025 год \n(в среднем за год)"]
[]
["2.1.* В том числе специалисты, участвующие в аудиторских и консалтинговых проектах, обеспечившие выручку от аудита и консалтинга."]
["2.2.* Из них специалисты (консультанты), участвующие в консалтинговых проектах, обеспечившие выручку от консалтинговых услуг (сведения для рэнкинга \"Российский консалтинг\"; если вы также заполняете анкету по группе, то этот пункт здесь заполнять не нужно)."]
["2.3.* Численность аудиторов (на 31 декабря, по форме №2-аудит).",null,"На 31.12.2024","На 31.12.2025"]
[]
["— из них аудиторы с единым аттестатом (аттестат полученный после 01.01.2011):"]
["2.4. Численность аудиторов по основному месту работы (на 31 декабря)."]
[]
["3.* Выручка от аудита (аудиторской деятельности) по форме №2-аудит.",null,"За 2024 год","За 2025 год"]
["Обязательный аудит"]
["Инициативный аудит"]
["Услуги, сопутствующие аудиту"]
["Всего от аудиторской деятельности (аудит):",null,{"$f":"SUM(C31:C33)","v":0},{"$f":"SUM(D31:D33)","v":0}]
["Прочие услуги, связанные с аудиторской деятельностью (консалтинг):"]
["Итого выручка от аудита и консалтинга:",null,{"$f":"C34+C35","v":0},{"$f":"D34+D35","v":0}]
["3.1. Выручка от аудиторской деятельности (аудит) в финансовом секторе:",null,"За 2024 год","За 2025 год"]
["— кредитные организации:"]
["— страховые организации:"]
["— биржи, инвестиционные компании:"]
["— лизинговые организации:"]
["— негосударственные пенсионные фонды:"]
["Всего:",null,{"$f":"SUM(C38:C42)","v":0},{"$f":"SUM(D38:D42)","v":0}]
["3.2. Суммарная выручка от аудита и консалтинга за первые два месяца 2026, 2025 и 2024 гг. Информация не разглашается и запрашивается только для исследования рынка.","2 мес. 2024 года","2 мес. 2025 года","2 мес. 2026 года"]
["Выручка от аудита и консалтинга:"]
["— в том числе выручка от консалтинга:"]
[]
["4. Количество выданных аудиторских заключений (всего).",null,"За 2024 год","За 2025 год"]
[]
["— из них обязательный аудит:"]
["— из них инициативный аудит:"]
[]
["Укажите, пожалуйста, клиента, при оказании аудиторских или консалтинговых услуг которому, доля полученной выручки превышает 25% общего дохода компании."]
["Пожалуйста, назовите из вашей практики организации, которые в 2025 году в мероприятиях, связанных с отбором компаний для работ по аудиту и / или консалтингу (в том числе аутсорсинг, оценка и т.д.), одним из требований к подрядчикам указывали участие в рэнкингах, составляемых рейтинговым агентством RAEX (ООО \"РАЭКС-Аналитика\")."]
["Должность, ФИО и контактная информация сотрудника для взаимодействия в рамках рэнкингов.",null,"Должность","ФИО"]
[]
[null,null,"E-mail","Номер телефона"]
[]
["Пожалуйста, перейдите к заполнению следующего листа"]

{"sheet":"Показатели","index":1,"n_rows":20,"n_cols":32,"rows_kept":20,"cut":false,"hidden":false,"merged":[[18,1,18,29],[19,1,19,29],[0,0,0,31],[1,0,1,31],[2,0,2,31],[5,30,5,31]]}
["Этот лист является обязательным для заполнения. Пояснения смотрите в инструкции к анкете в файле instruct.doc"]
["Для отражения опыта работы Вашей компании, пожалуйста, укажите в соответствующих ячейках таблицы объём выручки от аудита и прочих услуг, связанных с аудиторской деятельностью (консалтинг), оказанных предприятиям различных отраслей экономики в 2025 году. Выручка приводится в рублях без округления и без учёта НДС. Результат в строке \"Итого по всем видам деятельности\" (ячейка AE31) равен 100%. Если структурирование выручки по отраслям экономики затруднительно, то допускается указание суммарной выручки по направлениям услуг в графе \"Другие отрасли и сферы экономики\"."]
[" После того как эта таблица будет заполнена, пожалуйста, перейдите к заполнению следующего листа"]
[" Виды услуг / отрасли экономики","Агропромышленный\nкомплекс","Легкая промышленность","Лесная,\nдеревообрабатывающая и\n целлюлозно-бумажная\n промышленность","Машиностроение","Металлургический комплекс\n(в т.ч. угольная\n промышленность)","Нефтяная и нефтегазовая\nпромышленность","Пищевая промышленность\n(в т.ч. общественное питание)","Промышленность\nдрагоценных металлов и алмазов","Промышленность\nстроительных материалов","Фармацевтика","Химический комплекс\n(в т.ч. нефтехимическая\nпромышленность)","Электроэнергетика","Строительство и девелопмент","Торговля","Транспорт","Связь и телекоммуникации","Банки","Страховые компании","Биржи и Инвестиционные институты","Лизинговые компании","НПФ","Государственное управление","ЖКХ","Здравоохранение","ИТ","Образование","СМИ","Полиграфическая\nпромышленность","Другие отрасли и сферы экономики","Доля в суммарной выручке (%)","Всего по видам услуг (руб.)"]
["Аудит (обязательный и инициативный аудит; услуги сопутствующие аудиту) (выручка, руб.)",{"$nulls":29},{"$f":"IF(AF20=0,\"\",AF5/AF20)","v":""},{"$f":"SUM(B5:AD5)","v":0}]
["примеры клиентов"]
["Консалтинг в области стратегического планирования и организационного развития (выручка, руб.)",{"$nulls":29},{"$f":"IF(AF20=0,\"\",AF7/AF20)","v":""},{"$f":"SUM(B7:AD7)","v":0}]
["Консалтинг в области финансового управления (бухгалтерские услуги и аутсорсинг функций учёта, планирование издержек и контроль рисков, разработка бизнес-планов и т.д.) (выручка, руб.)",{"$nulls":29},{"$f":"IF(AF20=0,\"\",AF8/AF20)","v":""},0]
["Налоговый консалтинг (консультирование по вопросам налогообложения, ведение налогового учёта, налоговая экспертиза и т.д.) (выручка, руб.)",{"$nulls":29},{"$f":"IF(AF20=0,\"\",AF9/AF20)","v":""},0]
["Консалтинг в области управления персоналом (без учёта подбора персонала) (выручка, руб.)",{"$nulls":29},{"$f":"IF(AF20=0,\"\",AF10/AF20)","v":""},0]
["Консалтинг в области организации производства товаров и услуг (технологический и ценовой аудит, строительный консалтинг и экспертиза, разработка и внедрение технологий; НИОКР;  консультирование по вопросам управления производством; логистика; контроль качества) (выручка, руб.)",{"$nulls":29},{"$f":"IF(AF20=0,\"\",AF11/AF20)","v":""},0]
["Консалтинг в области маркетинга и отношений с общественностью (выручка, руб.)",{"$nulls":29},{"$f":"IF(AF20=0,\"\",AF12/AF20)","v":""},0]
["ИТ-консалтинг: управленческое консультирование (выручка, руб.)",{"$nulls":29},{"$f":"IF(AF20=0,\"\",AF13/AF20)","v":""},0]
["ИТ-консалтинг: разработка и системная интеграция (без учёта стоимости оборудования и лицензий ПО, технических и пуско-наладочных работ) (выручка, руб.)",{"$nulls":29},{"$f":"IF(AF20=0,\"\",AF14/AF20)","v":""},0]
["Юридический консалтинг (выручка, руб.)",{"$nulls":29},{"$f":"IF(AF20=0,\"\",AF15/AF20)","v":""},0]
["Оценочная деятельность (выручка, руб.)",{"$nulls":29},{"$f":"IF(AF20=0,\"\",AF16/AF20)","v":""},0]
["Прочие консалтинговые услуги (выручка, руб.) (пожалуйста, перечислите в этой ячейке какие именно услуги были оказаны)",{"$nulls":29},{"$f":"IF(AF20=0,\"\",AF17/AF20)","v":""},0]
["ИТОГО (общая выручка от услуг аудита и консалтинга):",{"$f":"SUM(B5:B17)","v":0},0,0,0,0,0,0,0,0,0,0,0,0,0,0,0,0,0,0,0,0,0,0,0,0,0,0,0,0,0,0]
["Другие виды деятельности (выручка, руб.)",{"$nulls":29},{"$f":"IF(AF20=0,\"\",AF19/AF20)","v":""},{"$f":"SUM(B19:AD19)","v":0}]
["Итого по всем видам деятельности:",{"$nulls":29},{"$f":"SUM(AE18,AE19)","v":0},{"$f":"SUM(AF18,AF19)","v":0}]

{"sheet":"Аутсорсинг учетных функций","index":2,"n_rows":34,"n_cols":23,"rows_kept":34,"cut":false,"hidden":false,"merged":[[11,22,12,22],[11,11,12,11],[11,19,12,19],[33,0,33,22],[14,18,14,22],[16,18,16,22],[20,18,20,22],[29,0,29,22],[32,20,32,22],[22,18,22,22],[28,18,28,22],[26,18,26,22],[24,18,24,22],[31,18,31,22],[11,18,12,18],[11,20,12,20],[11,9,12,9],[6,0,7,17],[11,21,12,21],[11,12,12,12],[11,13,12,13],[11,14,12,14],[11,15,12,15],[11,16,12,16],[0,0,1,22],[2,20,7,22],[8,0,10,22],[2,0,3,17],[11,10,12,10],[4,0,5,17],[11,0,12,0],[11,1,12,1],[11,2,12,2],[11,3,12,3],[11,4,12,4],[11,5,12,5],[11,6,12,6],[11,7,12,7],[11,8,12,8],[11,17,12,17]]}
["Этот лист является обязательным для компаний, имеющих опыт предоставления услуг в области АУТСОРСИНГА УЧЁТНЫХ ФУНКЦИЙ и участвующих в рэнкингах по данному направлению. Пояснения смотрите в инструкции - instruct.doc и в методике - metod (outsource).doc."]
[]
["Средняя численность специалистов, задействованных в предоставлении услуг в области аутсорсинга учётных функций. Специалисты — это сотрудники, выполняющие работу для заказчиков (бухгалтеры, консультанты). Без учёта сотрудников сервисных служб компании (продажи, маркетинг, ИТ, бухгалтерия и т.д.)",{"$nulls":17},"За 2024 год","За 2025 год"]
[]
["Выручка (без учёта НДС), полученная от предоставления услуг аутсорсинга функций учёта.",{"$nulls":17},"За 2024 год","За 2025 год"]
[{"$nulls":19},{"$f":"T33","v":0}]
["Суммарная выручка за первые три месяца 2026 и 2025 гг. Информация запрашивается только для исследования динамики рынка.",{"$nulls":17},"3 мес. 2025 года","3 мес. 2026 года"]
[]
["Для более полного представления опыта работы, укажите в таблице выручку (без НДС) от услуг аутсорсинга учётных функций, оказанных предприятиям различных отраслей экономики в 2025 году. Приведите примеры крупнейших клиентов (2-3 клиента), которым Ваша компания предоставляла услуги аутсорсинга учётных функций за исследуемый период. Если структурирование выручки по отраслям экономики затруднительно, то допускается указание суммарной выручки по направлениям аутсорсинга в графе \"Другие отрасли и сферы экономики\"."]
[]
[]
["Виды услуг","Машиностроение и металлообработка","Металлургический\nкомплекс (в т.ч. угольная промышленность)","Нефтяная и\nнефтегазовая\nпромышленность","Пищевая\nпромышленность","Промышленность\nстроительных\nматериалов","Химическая\n промышленность","Электроэнергетика","Строительство","Торговля","Транспорт","Связь","Финансовые институты","Государственное\nуправление","ЖКХ","Здравоохранение","Образование","Другие отрасли\nи сферы экономики","Доля в общей выручке от аутсорсинга учётных функций (%)","Всего выручка (руб.)","Всего клиентов","Примерная доля выручки от услуг иностранным компаниям, работающим на территории РФ, в общем доходе (%)","Количество иностранных клиентов"]
[]
["Бухгалтерский и налоговый учёт",{"$nulls":17},{"$f":"IF(T33=0,\"\",T14/T33)","v":""},{"$f":"B14+C14+D14+E14+F14+G14+H14+I14+J14+K14+L14+M14+N14+O14+P14+Q14+R14","v":0}]
["примеры клиентов"]
["Расчёт заработной платы",{"$nulls":17},{"$f":"IF(T33=0,\"\",T16/T33)","v":""},{"$f":"B16+C16+D16+E16+F16+G16+H16+I16+J16+K16+L16+M16+N16+O16+P16+Q16+R16","v":0}]
["примеры клиентов"]
["Подготовка бухгалтерской и налоговой отчётности (РСБУ)",{"$nulls":17},{"$f":"IF(T33=0,\"\",T18/T33)","v":""},{"$f":"B18+C18+D18+E18+F18+G18+H18+I18+J18+K18+L18+M18+N18+O18+P18+Q18+R18","v":0}]
["примеры клиентов"]
["Подготовка финансовой отчётности (МСФО, US GAAP)",{"$nulls":17},{"$f":"IF(T33=0,\"\",T20/T33)","v":""},{"$f":"B20+C20+D20+E20+F20+G20+H20+I20+J20+K20+L20+M20+N20+O20+P20+Q20+R20","v":0}]
["примеры клиентов"]
["Кадровый учёт и делопроизводство",{"$nulls":17},{"$f":"IF(T33=0,\"\",T22/T33)","v":""},{"$f":"B22+C22+D22+E22+F22+G22+H22+I22+J22+K22+L22+M22+N22+O22+P22+Q22+R22","v":0}]
["примеры клиентов"]
["Юридическое сопровождение бизнеса",{"$nulls":17},{"$f":"IF(T33=0,\"\",T24/T33)","v":""},{"$f":"B24+C24+D24+E24+F24+G24+H24+I24+J24+K24+L24+M24+N24+O24+P24+Q24+R24","v":0}]
["примеры клиентов"]
["ИТ-аутсорсинг (в рамках договоров аутсорсинга учётных функций клиента)",{"$nulls":17},{"$f":"IF(T33=0,\"\",T26/T33)","v":""},{"$f":"B26+C26+D26+E26+F26+G26+H26+I26+J26+K26+L26+M26+N26+O26+P26+Q26+R26","v":0}]
["примеры клиентов"]
["Подбор персонала (в рамках договоров аутсорсинга кадрового учёта)",{"$nulls":17},{"$f":"IF(T33=0,\"\",T28/T33)","v":""},{"$f":"B28+C28+D28+E28+F28+G28+H28+I28+J28+K28+L28+M28+N28+O28+P28+Q28+R28","v":0}]
["примеры клиентов"]
["Другие виды услуг в рамках регулярного обслуживания по договорам аутсорсинга учётных функций (перечислите, пожалуйста, обязательно их наименования ниже, в одной ячейке)."]
["Другие виды услуг в рамках регулярного обслуживания по договорам аутсорсинга учётных функций",{"$nulls":17},{"$f":"IF(T33=0,\"\",T31/T33)","v":""},{"$f":"B31+C31+D31+E31+F31+G31+H31+I31+J31+K31+L31+M31+N31+O31+P31+Q31+R31","v":0}]
["примеры клиентов"]
["Итого, по аутсорсингу учётных функций:",{"$f":"SUM(B14:B31)","v":0},{"$f":"SUM(C14:C31)","v":0},0,0,0,0,0,0,0,0,0,0,0,0,0,0,0,{"$f":"SUM(S14:S31)","v":0},{"$f":"SUM(T14:T31)","v":0}]
["После того как эта таблица будет заполнена, пожалуйста, перейдите к заполнению следующего листа"]

{"sheet":"Технический аудит и консалтинг","index":3,"n_rows":29,"n_cols":25,"rows_kept":29,"cut":false,"hidden":false,"merged":[[4,0,5,22],[6,0,7,22],[0,0,3,24],[8,0,10,24],[28,0,28,24],[23,22,23,24],[26,1,26,21],[26,24,27,24],[27,1,27,21],[13,22,13,24],[17,22,17,24],[19,22,19,24],[21,22,21,24]]}
["Этот лист является обязательным для компаний, имеющих опыт предоставления услуг в области ТЕХНИЧЕСКОГО АУДИТА И КОНСАЛТИНГА.\nПояснения смотрите в инструкции (instruct.doc)."]
[]
[]
[]
["Средняя численность специалистов, задействованных в предоставлении услуг в области технического аудита и консалтинга. Без учёта сотрудников сервисных служб компании (продажи, маркетинг, ИТ, бухгалтерия и т.д.).",{"$nulls":22},"За 2024 год","За 2025 год"]
[]
["Выручка (без учёта НДС), полученная от предоставления услуг технического аудита и консалтинга.",{"$nulls":22},"За 2024 год","За 2025 год"]
[{"$nulls":24},{"$f":"X26","v":0}]
["Для более полного представления опыта работы, укажите в таблице выручку (без НДС), заработанную в результате предоставления услуг технического аудита и консалтинга предприятиям различных отраслей экономики в 2025 году. Приведите примеры крупнейших клиентов (2-3 клиента), которым Ваша компания предоставляла услуги технического аудита и консалтинга за исследуемый период. Если структурирование выручки по отраслям экономики затруднительно, то допускается указание суммарной выручки по направлениям технического аудита и консалтинга в колонке \"Другие отрасли и сферы экономики\"."]
[]
[]
[" Виды услуг / отрасли экономики","АПК","Легкая промышленность","Лесная, деревообрабатывающая и\n целлюлозно-бумажная\n промышленность","Машиностроение","Металлургический комплекс\n(в т.ч. угольная\n промышленность)","Нефтяная и нефтегазовая\nпромышленность","Пищевая промышленность\n(в т.ч. общественное питание)","Промышленность\nдрагоценных металлов и алмазов","Промышленность\nстроительных материалов","Фармацевтика","Химический комплекс \n(в т.ч. нефтехимическая\nпромышленность)","Электроэнергетика","Строительство и девелопмент","Транспорт","Торговля","Связь и телекоммуникации","Государственное управление","Банки","ЖКХ","Полиграфическая\nпромышленность","Другие отрасли и сферы экономики","Доля в суммарной выручке (%)","Всего по видам услуг (руб.)","Всего клиентов за 2025 год"]
["Технический и ценовой аудит инвестиционных проектов и активов",{"$nulls":21},{"$f":"IF(X28=0,\"\",X13/X28)","v":""},{"$f":"SUM(B13:V13)","v":0}]
["примеры клиентов"]
["Строительный консалтинг и аудит",{"$nulls":21},{"$f":"IF(X28=0,\"\",X15/X28)","v":""},{"$f":"SUM(B15:V15)","v":0}]
["примеры клиентов"]
["Предварительное проектирование (инжиниринг)",{"$nulls":21},{"$f":"IF(X28=0,\"\",X17/X28)","v":""},{"$f":"SUM(B17:V17)","v":0}]
["примеры клиентов"]
["Энергетический аудит",{"$nulls":21},{"$f":"IF(X28=0,\"\",X19/X28)","v":""},{"$f":"SUM(B19:V19)","v":0}]
["примеры клиентов"]
["Консалтинг в области промышленной безопасности",{"$nulls":21},{"$f":"IF(X28=0,\"\",X21/X28)","v":""},{"$f":"SUM(B21:V21)","v":0}]
["примеры клиентов"]
["Консалтинг в области экологии",{"$nulls":21},{"$f":"IF(X28=0,\"\",X23/X28)","v":""},{"$f":"SUM(B23:V23)","v":0}]
["примеры клиентов"]
["Прочие услуги технического аудита и консалтинга (выручка, руб.) (перечислите, пожалуйста, их в данной ячейке через запятую)",{"$nulls":21},{"$f":"IF(X28=0,\"\",X25/X28)","v":""},{"$f":"SUM(B25:V25)","v":0}]
["ИТОГО (технический аудит и консалтинг):",{"$f":"B13+B15+B17+B19+B21+B23+B25","v":0},{"$f":"C13+C15+C17+C19+C21+C23+C25","v":0},0,0,0,0,0,0,0,0,0,0,0,0,0,0,0,0,0,0,0,{"$f":"SUM(W13:W25)","v":0},{"$f":"SUM(X13:X25)","v":0},{"$f":"SUM(Y13,Y15,Y17,Y19,Y21,Y23,Y25)","v":0}]
["Другие виды деятельности (выручка, руб.)",{"$nulls":21},{"$f":"IF(X28=0,\"\",X27/X28)","v":""},{"$f":"B27","v":0}]
["Итого по всем видам деятельности:",{"$nulls":21},{"$f":"SUM(W26,W27)","v":0},{"$f":"SUM(X26,X27)","v":0}]
["После того как эта таблица будет заполнена, пожалуйста, перейдите к заполнению следующего листа"]

{"sheet":"МСФО","index":4,"n_rows":27,"n_cols":19,"rows_kept":27,"cut":false,"hidden":false,"merged":[[0,0,3,18],[4,0,5,15],[4,18,5,18],[16,0,16,18],[6,0,7,15],[8,0,8,18],[9,0,10,0],[9,1,9,3],[9,4,9,6],[9,7,9,9],[9,10,9,12],[9,13,9,15],[9,16,10,16],[9,17,10,17],[9,18,10,18]]}
["Таблица является обязательной к заполнению для компаний, имеющих опыт предоставления услуг в области МСФО. Пояснения смотрите в инструкции (instruct.doc)."]
[]
[]
[]
["Средняя численность специалистов, задействованных в предоставлении услуг в области МСФО и обеспечивающих выручку от этих услуг. Специалисты — это сотрудники, выполняющие работу для заказчиков. Без учёта сотрудников сервисных служб компании (бухгалтерия, ИТ, реклама, маркетинг и т.д.)",{"$nulls":15},"За 2024 год","За 2025 год"]
[]
["Выручка (без учёта НДС), полученная от предоставления услуг в области МСФО (аудит, трансформация отчётности, обучение и консалтинг, оценка).",{"$nulls":15},"За 2024 год","За 2025 год"]
[{"$nulls":17},{"$f":"S19","v":0}]
["Для более полного представления опыта работы по направлению МСФО, пожалуйста, укажите в таблице объём выручки (без НДС), заработанной в результате предоставления МСФО-услуг за 2025 год. Приведите примеры крупнейших клиентов (2-3 клиента), которым Ваша компания предоставляла МСФО-услуги за исследуемый период."]
["Виды услуг","Банки",null,null,"Страховые компании",null,null,"Лизинговые компании",null,null,"НПФ, инвестиционные компании и другие участники финансового сектора",null,null,"Предприятия промышленности и нефинансового сектора",null,null,"Всего клиентов","Доля в суммарной выручке (%)","Всего выручка (руб.)"]
[null,"Выручка (руб.)","Кол-во клиентов","Примеры клиентов","Выручка (руб.)","Кол-во клиентов","Примеры клиентов","Выручка (руб.)","Кол-во клиентов","Примеры клиентов","Выручка (руб.)","Кол-во клиентов","Примеры клиентов","Выручка (руб.)","Кол-во клиентов","Примеры клиентов"]
["Аудит*",{"$nulls":15},{"$f":"SUM(C12,F12,I12,L12,O12)","v":0},{"$f":"IF(S19=0,\"\",S12/S19)","v":""},{"$f":"SUM(B12,E12,H12,K12,N12)","v":0}]
["Трансформация отчётности*",{"$nulls":15},{"$f":"SUM(C13,F13,I13,L13,O13)","v":0},{"$f":"IF(S19=0,\"\",S13/S19)","v":""},{"$f":"SUM(B13,E13,H13,K13,N13)","v":0}]
["Консалтинговые услуги",{"$nulls":15},0,{"$f":"IF(S19=0,\"\",S14/S19)","v":""},0]
["Обучение",{"$nulls":15},0,{"$f":"IF(S19=0,\"\",S15/S19)","v":""},0]
["Оценка",{"$nulls":15},0,{"$f":"IF(S19=0,\"\",S16/S19)","v":""},0]
["Прочие услуги (пожалуйста, перечислите услуги ниже, в одной строке, через запятую):"]
["Прочие МСФО-услуги (перечислите, пожалуйста, в данной ячейке такие услуги)",{"$nulls":15},0,{"$f":"IF(S19=0,\"\",S18/S19)","v":""},0]
["Итого:",{"$f":"SUM(B12,B13,B14,B15,B16,B18)","v":0},{"$f":"SUM(C12,C13,C14,C15,C16,C18)","v":0},null,0,0,null,0,0,null,0,0,null,0,0,null,null,{"$f":"SUM(R12:R18)","v":0},{"$f":"SUM(S12:S18)","v":0}]
{"$rows_empty":7}
[{"$nulls":18}," "]

{"sheet":"ESG","index":5,"n_rows":23,"n_cols":3,"rows_kept":23,"cut":false,"hidden":false,"merged":[[12,0,12,2],[21,0,21,2],[22,0,22,2],[23,0,23,2],[0,0,0,2],[2,0,3,0],[4,0,4,2],[5,0,6,0],[8,0,8,2],[9,0,10,0]]}
["Этот лист является обязательным для компаний, имеющих опыт предоставления услуг, связанных с аудитом и консалтингом в области ESG."]
["1. Наименование компании, осуществляющей деятельность в области ESG."]
["2. Средняя численность специалистов, обеспечивающих услуги ESG.","За 2024 год","За 2025 год"]
[]
[]
["3. Количество проектов, связанных с аудитом ESG-отчётности (число аудированных отчётов).","За 2024 год","За 2025 год"]
[]
["3.1. Объём выручки (без НДС), полученной от проведения аудита ESG-отчётности."]
[]
["4. Количество проектов, связанных с консалтингом в области ESG.","За 2024 год","За 2025 год"]
[]
["4.1. Объём выручки (без НДС), полученной от оказания консалтинговых услуг в области ESG."]
["В том числе:"]
["— ESG стратегии"]
["— Подготовка нефинансовой отчётности"]
["— Оценка ESG рисков"]
["— Поиск технологических инноваций для ESG трансформации"]
["— PR в сфере ESG"]
["— Исследования и сравнительный анализ конкурентов"]
["— Иное (укажите, пожалуйста, в этой строке какие именно услуги)"]
["Всего (консалтинг ESG)",{"$f":"SUM(B14:B20)","v":0},{"$f":"SUM(C14:C20)","v":0}]
[]
["5. Опрос. Какие консалтинговые услуги в области ESG пользовались в 2025 году наибольшим спросом? На Ваш взгляд, с чем это связано? Приведите, пожалуйста, ответы в ячейке ниже."]

{"sheet":"Бланк подтверждения","index":6,"n_rows":65,"n_cols":3,"rows_kept":65,"cut":false,"hidden":false,"merged":[[7,1,7,2],[64,0,64,1],[0,0,0,2],[1,0,1,2],[3,0,3,2],[4,0,4,2],[6,1,6,2],[8,1,8,2],[10,1,10,2],[9,1,9,2],[5,1,5,2]]}
["Куда: RAEX (ООО \"РАЭКС-Аналитика\"), (495) 617-07-77, audit@raex-a.ru, http://www.raex-rr.com"]
[{"$f":"\"От:  \"&'Общие сведения'!B4&\", \"&'Общие сведения'!B5&\", \"&'Общие сведения'!B10&\", \"&'Общие сведения'!B11&\", \"&'Общие сведения'!B12","v":"От:  , , , , "}]
[]
["БЛАНК ПОДТВЕРЖДЕНИЯ "]
["Подтверждаем достоверность данных за 2025 год, переданных в адрес ООО \"РАЭКС-Аналитика\", в т.ч.:"]
[]
["Численность сотрудников (в среднем за год, согласно форме №2-аудит)",{"$f":"'Общие сведения'!D22","v":0}]
["— в т.ч. специалисты, участвующие в аудиторских и консалтинговых проектах",{"$f":"'Общие сведения'!D23","v":0}]
["— из них специалисты (консультанты), участвующие в консалтинговых проектах",{"$f":"'Общие сведения'!D24","v":0}]
["Численность аудиторов (на 31.12.2025, по форме №2-аудит)",{"$f":"'Общие сведения'!D26","v":0}]
["— из них численность аудиторов по основному месту работы",{"$f":"'Общие сведения'!D28","v":0}]
["АУДИТ","Доля","Выручка"]
["Обязательный",{"$f":"IF(C18=0,\"\",C13/C18)","v":""},{"$f":"'Общие сведения'!D31","v":0}]
["Инициативный",{"$f":"IF(C18=0,\"\",C14/C18)","v":""},{"$f":"'Общие сведения'!D32","v":0}]
["Услуги, сопутствующие аудиту",{"$f":"IF(C18=0,\"\",C15/C18)","v":""},{"$f":"'Общие сведения'!D33","v":0}]
["Всего (АУДИТ)",{"$f":"SUM(B13:B15)","v":0},{"$f":"SUM(C13:C15)","v":0}]
["КОНСАЛТИНГ (прочие услуги, связанные с аудиторской деятельностью)",{"$f":"IF(C18=0,\"\",C17/C18)","v":""},{"$f":"'Общие сведения'!D35","v":0}]
["Всего (АУДИТ и КОНСАЛТИНГ)",{"$f":"SUM(B16:B17)","v":0},{"$f":"C16+C17","v":0}]
["Структура выручки от аудита и консалтинга","Доля","Выручка"]
["Аудит организаций нефинансового сектора",{"$f":"IF(C41=0,\"\",C20/C41)","v":""},{"$f":"Показатели!AF5-Показатели!R5-Показатели!S5-Показатели!T5-Показатели!U5-Показатели!V5","v":0}]
["Аудит банков",{"$f":"IF(C41=0,\"\",C21/C41)","v":""},{"$f":"Показатели!R5","v":0}]
["Аудит страховых компаний",{"$f":"IF(C41=0,\"\",C22/C41)","v":""},{"$f":"Показатели!S5","v":0}]
["Аудит бирж и инвестиционных институтов",{"$f":"IF(C41=0,\"\",C23/C41)","v":""},{"$f":"Показатели!T5","v":0}]
["Аудит лизинговых компаний",{"$f":"IF(C41=0,\"\",C24/C41)","v":""},{"$f":"Показатели!U5","v":0}]
["Аудит НПФ",{"$f":"IF(C41=0,\"\",C25/C41)","v":""},{"$f":"Показатели!V5","v":0}]
["Всего (аудит):",{"$f":"SUM(B20:B25)","v":0},{"$f":"SUM(C20:C25)","v":0}]
["Стратегический консалтинг ",{"$f":"IF(C41=0,\"\",C27/C41)","v":""},{"$f":"Показатели!AF7","v":0}]
["Финансовый консалтинг (в т.ч. услуги по МСФО, кроме аудита; в т.ч. аутсорсинг учёта)",{"$f":"IF(C41=0,\"\",C28/C41)","v":""},{"$f":"Показатели!AF8","v":0}]
["Налоговый консалтинг ",{"$f":"IF(C41=0,\"\",C29/C41)","v":""},{"$f":"Показатели!AF9","v":0}]
["Управление персоналом (без учёта подбора персонала)",{"$f":"IF(C41=0,\"\",C30/C41)","v":""},{"$f":"Показатели!AF10","v":0}]
["Консалтинг в области производства услуг и товаров (в т.ч. технический аудит и консалтинг)",{"$f":"IF(C41=0,\"\",C31/C41)","v":""},{"$f":"Показатели!AF11","v":0}]
["Маркетинг и отношения с общественностью ",{"$f":"IF(C41=0,\"\",C32/C41)","v":""},{"$f":"Показатели!AF12","v":0}]
["ИТ-консалтинг (управленческое консультирование)",{"$f":"IF(C41=0,\"\",C33/C41)","v":""},{"$f":"Показатели!AF13","v":0}]
["ИТ-консалтинг (разработка и системная интеграция)",{"$f":"IF(C41=0,\"\",C34/C41)","v":""},{"$f":"Показатели!AF14","v":0}]
["Юридический консалтинг",{"$f":"IF(C41=0,\"\",C35/C41)","v":""},{"$f":"Показатели!AF15","v":0}]
["Оценочная деятельность (в т.ч. по МСФО)",{"$f":"IF(C41=0,\"\",C36/C41)","v":""},{"$f":"Показатели!AF16","v":0}]
["Прочие консалтинговые услуги",{"$f":"IF(C41=0,\"\",C37/C41)","v":""},{"$f":"Показатели!AF17","v":0}]
["Всего (консалтинг):",{"$f":"SUM(B27:B37)","v":0},{"$f":"SUM(C27:C37)","v":0}]
["Итого:",{"$f":"B26+B38","v":0},{"$f":"Показатели!AF18","v":0}]
["Другие виды деятельности",{"$f":"IF(C41=0,\"\",C40/C41)","v":""},{"$f":"Показатели!AF19","v":0}]
["Итого по всем видам деятельности :",{"$f":"SUM(B39:B40)","v":0},{"$f":"Показатели!AF20","v":0}]
["Услуги в области МСФО","Доля","Выручка"]
["Аудит",{"$f":"IF(C49=0,\"\",C43/C49)","v":""},{"$f":"МСФО!S12","v":0}]
["Трансформация отчетности",{"$f":"IF(C49=0,\"\",C44/C49)","v":""},{"$f":"МСФО!S13","v":0}]
["Консалтинг",{"$f":"IF(C49=0,\"\",C45/C49)","v":""},{"$f":"МСФО!S14","v":0}]
["Обучение",{"$f":"IF(C49=0,\"\",C46/C49)","v":""},{"$f":"МСФО!S15","v":0}]
["Оценка",{"$f":"IF(C49=0,\"\",C47/C49)","v":""},{"$f":"МСФО!S16","v":0}]
["Другие МСФО-услуги",{"$f":"IF(C49=0,\"\",C48/C49)","v":""},{"$f":"МСФО!S18","v":0}]
["Итого:",{"$f":"SUM(B43:B48)","v":0},{"$f":"SUM(C43:C48)","v":0}]
["Аутсорсинг учётных функций","Доля","Выручка"]
["Бухгалтерский и налоговый учёт",{"$f":"IF(C60=0,\"\",C51/C60)","v":""},{"$f":"'Аутсорсинг учетных функций'!T14","v":0}]
["Расчёт зарплат",{"$f":"IF(C60=0,\"\",C52/C60)","v":""},{"$f":"'Аутсорсинг учетных функций'!T16","v":0}]
["Подготовка бухгалтерской и налоговой отчётности (РСБУ)",{"$f":"IF(C60=0,\"\",C53/C60)","v":""},{"$f":"'Аутсорсинг учетных функций'!T18","v":0}]
["Подготовка финансовой отчётности (МСФО)",{"$f":"IF(C60=0,\"\",C54/C60)","v":""},{"$f":"'Аутсорсинг учетных функций'!T20","v":0}]
["Кадровый учёт и делопроизводство",{"$f":"IF(C60=0,\"\",C55/C60)","v":""},{"$f":"'Аутсорсинг учетных функций'!T22","v":0}]
["Юридическое сопровождение бизнеса",{"$f":"IF(C60=0,\"\",C56/C60)","v":""},{"$f":"'Аутсорсинг учетных функций'!T24","v":0}]
["ИТ-аутсорсинг (в рамках договоров аутсорсинга учётных функций клиента)",{"$f":"IF(C60=0,\"\",C57/C60)","v":""},{"$f":"'Аутсорсинг учетных функций'!T26","v":0}]
["Подбор персонала (в рамках договоров аутсорсинга кадрового учёта)",{"$f":"IF(C60=0,\"\",C58/C60)","v":""},{"$f":"'Аутсорсинг учетных функций'!T28","v":0}]
["Другие виды аутсорсинга учёта",{"$f":"IF(C60=0,\"\",C59/C60)","v":""},{"$f":"'Аутсорсинг учетных функций'!T31","v":0}]
["Итого:",{"$f":"SUM(B51:B59)","v":0},{"$f":"SUM(C51:C59)","v":0}]
["Достоверность данных подтверждаю:"]
[{"$f":"'Общие сведения'!B19","v":0}]
[{"$f":"'Общие сведения'!B17","v":0}]
[]
["(подпись)",null,"(печать)"]

{"sheet":"Бланк подтверждения (ТАиК)","index":7,"n_rows":37,"n_cols":3,"rows_kept":37,"cut":false,"hidden":false,"merged":[[13,0,13,1],[16,1,16,2],[0,0,0,2],[3,0,3,2],[5,0,5,2],[10,0,10,2],[11,0,11,2],[12,0,12,2]]}
["Куда: RAEX (ООО \"РАЭКС-Аналитика\"); (495) 617-07-77, audit@raex-a.ru, http://www.raex-rr.com"]
[]
[]
[{"$f":"\"От:  \"&'Общие сведения'!B4&\", \"&'Общие сведения'!B5&\", \"&'Общие сведения'!B10&\", \"&'Общие сведения'!B11&\", \"&'Общие сведения'!B12&\"\"","v":"От:  , , , , "}]
[]
["БЛАНК ПОДТВЕРЖДЕНИЯ "]
[]
[]
[]
[]
["Настоящим подтверждаем достоверность данных за 2025 год, переданных в адрес \nООО \"РАЭКС-Аналитика\", в том числе:"]
[]
[]
[]
[]
[]
["Среднее число специалистов",{"$f":"'Технический аудит и консалтинг'!Y6","v":0}]
["Технический аудит и консалтинг","Доля","Выручка\n(2025 г., руб.)"]
["Технический и ценовой аудит инвестиционных проектов и активов",{"$f":"IF(C28=0,\"\",C19/C28)","v":""},{"$f":"'Технический аудит и консалтинг'!X13","v":0}]
["Строительный консалтинг и аудит",{"$f":"IF(C28=0,\"\",C20/C28)","v":""},{"$f":"'Технический аудит и консалтинг'!X15","v":0}]
["Предварительное проектирование",{"$f":"IF(C28=0,\"\",C21/C28)","v":""},{"$f":"'Технический аудит и консалтинг'!X17","v":0}]
["Энергетический аудит",{"$f":"IF(C28=0,\"\",C22/C28)","v":""},{"$f":"'Технический аудит и консалтинг'!X19","v":0}]
["Консалтинг в области промышленной безопасности",{"$f":"IF(C28=0,\"\",C23/C28)","v":""},{"$f":"'Технический аудит и консалтинг'!X21","v":0}]
["Консалтинг в области экологии",{"$f":"IF(C28=0,\"\",C24/C28)","v":""},{"$f":"'Технический аудит и консалтинг'!X23","v":0}]
["Прочие услуги технического аудита и консалтинга",{"$f":"IF(C28=0,\"\",C25/C28)","v":""},{"$f":"'Технический аудит и консалтинг'!X25","v":0}]
["Всего по услугам технического аудита и консалтинга:",{"$f":"SUM(B19:B25)","v":0},{"$f":"SUM(C19:C25)","v":0}]
["Другие виды деятельности",{"$f":"IF(C28=0,\"\",C27/C28)","v":""},{"$f":"'Технический аудит и консалтинг'!X27","v":0}]
["Итого по всем видам деятельности :",{"$f":"SUM(B26:B27)","v":0},{"$f":"SUM(C26:C27)","v":0}]
[]
[]
[]
["Достоверность данных подтверждаю:"]
[]
[]
[{"$f":"'Общие сведения'!B19","v":0}]
[{"$f":"'Общие сведения'!B17","v":0},"для"]
["(подпись)","печати"]